[Event "Titled Tuesday Blitz July 6 2021"]
[White "Steven_Rojas"]
[Black "Cunjalo, Faris"]
[BlackFideId "14410710"]
[WhiteElo "2529"]
[BlackElo "2234"]
[Result "0-1"]
[Round "02"]
[TimeControl "180+1"]
[Date "2021.07.06"]
[WhiteClock "0:00:18"]
[BlackClock "0:00:31"]

1. c4 {[%clk 0:02:59]}  e6 {[%clk 0:02:36]} 2. e4 {[%clk 0:02:56]}  d5 {[%clk 0:02:37]} 3. exd5 {[%clk 0:02:56]}  exd5 {[%clk 0:02:38]} 4. cxd5 {[%clk 0:02:57]}  Nf6 {[%clk 0:02:38]} 5. Bb5+ {[%clk 0:02:57]}  Bd7 {[%clk 0:02:38]} 6. Bc4 {[%clk 0:02:57]}  Bd6 {[%clk 0:02:32]} 7. Ne2 {[%clk 0:02:51]}  O-O {[%clk 0:02:28]} 8. h3 {[%clk 0:02:47]}  Bf5 {[%clk 0:02:09]} 9. Nbc3 {[%clk 0:02:45]}  Nbd7 {[%clk 0:02:09]} 10. O-O {[%clk 0:02:43]}  a6 {[%clk 0:02:01]} 11. a4 {[%clk 0:02:35]}  Re8 {[%clk 0:01:53]} 12. a5 {[%clk 0:02:24]}  Ne5 {[%clk 0:01:52]} 13. Ra4 {[%clk 0:02:12]}  Nxc4 {[%clk 0:01:25]} 14. Rxc4 {[%clk 0:02:11]}  Nxd5 {[%clk 0:01:26]} 15. d3 {[%clk 0:01:44]}  Nxc3 {[%clk 0:01:20]} 16. Nxc3 {[%clk 0:01:44]}  Bxd3 {[%clk 0:01:19]} 17. Rg4 {[%clk 0:01:22]}  Bxf1 {[%clk 0:01:19]} 18. Qxf1 {[%clk 0:01:21]}  Be5 {[%clk 0:01:15]} 19. Be3 {[%clk 0:01:20]}  Qd7 {[%clk 0:01:06]} 20. Ne4 {[%clk 0:01:17]}  f5 {[%clk 0:01:04]} 21. Nc5 {[%clk 0:01:17]}  Qb5 {[%clk 0:01:01]} 22. Rc4 {[%clk 0:01:15]}  f4 {[%clk 0:00:52]} 23. Bc1 {[%clk 0:01:12]}  Rad8 {[%clk 0:00:51]} 24. b3 {[%clk 0:01:10]}  Rd4 {[%clk 0:00:51]} 25. Ne4 {[%clk 0:00:52]}  Rxc4 {[%clk 0:00:44]} 26. bxc4 {[%clk 0:00:53]}  Qxa5 {[%clk 0:00:43]} 27. Qd1 {[%clk 0:00:50]}  Qb6 {[%clk 0:00:38]} 28. Ng5 {[%clk 0:00:41]}  Qc6 {[%clk 0:00:36]} 29. Qh5 {[%clk 0:00:39]}  Qg6 {[%clk 0:00:34]} 30. Qh4 {[%clk 0:00:34]}  Bf6 {[%clk 0:00:31]} 31. Bxf4 {[%clk 0:00:35]}  h6 {[%clk 0:00:31]} 32. Qg3 {[%clk 0:00:28]}  hxg5 {[%clk 0:00:31]} 33. Bxc7 {[%clk 0:00:28]}  Re1+ {[%clk 0:00:31]} 34. Kh2 {[%clk 0:00:28]}  Qb1 {[%clk 0:00:32]} 35. Qf3 {[%clk 0:00:21]}  Qe4 {[%clk 0:00:29]} 36. Qb3 {[%clk 0:00:19]}  Be5+ {[%clk 0:00:29]} 37. Bxe5 {[%clk 0:00:18]}  Qxe5+ {[%clk 0:00:30]} 38. f4 {[%clk 0:00:19]}  Qxf4+ {[%clk 0:00:30]} 39. Qg3 {[%clk 0:00:18]}  Rh1+ {[%clk 0:00:31]} 40. Kxh1 {[%clk 0:00:18]}  Qxg3 {[%clk 0:00:31]} 0-1


[Site "https://www.chess.com"]

[Event "Titled Tuesday Blitz July 6 2021"]
[White "Sychev, Klementy"]
[Black "Novikov, Evgenij"]
[WhiteFideId "4114060"]
[BlackFideId "4125380"]
[WhiteElo "2615"]
[BlackElo "2242"]
[Result "1-0"]
[Round "02"]
[TimeControl "180+1"]
[Date "2021.07.06"]
[WhiteClock "0:00:08"]
[BlackClock "0:00:06"]

1. e4 {[%clk 0:03:00]}  c6 {[%clk 0:02:57]} 2. Nc3 {[%clk 0:02:55]}  d5 {[%clk 0:02:57]} 3. Qf3 {[%clk 0:02:55]}  e6 {[%clk 0:02:52]} 4. d4 {[%clk 0:02:53]}  Nd7 {[%clk 0:02:49]} 5. Bd3 {[%clk 0:02:50]}  a6 {[%clk 0:02:34]} 6. Nh3 {[%clk 0:02:47]}  dxe4 {[%clk 0:02:28]} 7. Nxe4 {[%clk 0:02:45]}  Ngf6 {[%clk 0:02:29]} 8. c3 {[%clk 0:02:21]}  Nxe4 {[%clk 0:02:26]} 9. Bxe4 {[%clk 0:02:18]}  Nf6 {[%clk 0:02:27]} 10. Bc2 {[%clk 0:02:18]}  Be7 {[%clk 0:02:22]} 11. O-O {[%clk 0:02:15]}  O-O {[%clk 0:02:16]} 12. Nf4 {[%clk 0:02:10]}  c5 {[%clk 0:02:09]} 13. dxc5 {[%clk 0:01:54]}  Bxc5 {[%clk 0:02:08]} 14. Nd3 {[%clk 0:01:49]}  Be7 {[%clk 0:01:56]} 15. Ne5 {[%clk 0:01:45]}  Qd5 {[%clk 0:01:40]} 16. Qxd5 {[%clk 0:01:44]}  exd5 {[%clk 0:01:35]} 17. Re1 {[%clk 0:01:42]}  Be6 {[%clk 0:01:35]} 18. Nf3 {[%clk 0:01:40]}  Bc5 {[%clk 0:01:31]} 19. Be3 {[%clk 0:01:32]}  b6 {[%clk 0:01:19]} 20. Bd4 {[%clk 0:01:30]}  Bxd4 {[%clk 0:01:09]} 21. Nxd4 {[%clk 0:01:29]}  Rfe8 {[%clk 0:01:07]} 22. Bd3 {[%clk 0:01:21]}  g6 {[%clk 0:00:56]} 23. h3 {[%clk 0:01:15]}  Kg7 {[%clk 0:00:51]} 24. f4 {[%clk 0:01:14]}  Nd7 {[%clk 0:00:39]} 25. f5 {[%clk 0:01:13]}  Nc5 {[%clk 0:00:38]} 26. Rad1 {[%clk 0:00:35]}  Nxd3 {[%clk 0:00:37]} 27. Rxd3 {[%clk 0:00:35]}  Bxf5 {[%clk 0:00:32]} 28. Nxf5+ {[%clk 0:00:30]}  gxf5 {[%clk 0:00:31]} 29. Red1 {[%clk 0:00:16]}  Re2 {[%clk 0:00:29]} 30. R1d2 {[%clk 0:00:15]}  Rxd2 {[%clk 0:00:28]} 31. Rxd2 {[%clk 0:00:16]}  Rd8 {[%clk 0:00:27]} 32. Kf2 {[%clk 0:00:16]}  Kf6 {[%clk 0:00:27]} 33. Kf3 {[%clk 0:00:15]}  a5 {[%clk 0:00:25]} 34. Kf4 {[%clk 0:00:14]}  h5 {[%clk 0:00:22]} 35. a4 {[%clk 0:00:12]}  Re8 {[%clk 0:00:18]} 36. Rxd5 {[%clk 0:00:11]}  Re4+ {[%clk 0:00:18]} 37. Kf3 {[%clk 0:00:12]}  Rxa4 {[%clk 0:00:19]} 38. Rb5 {[%clk 0:00:10]}  h4 {[%clk 0:00:14]} 39. Rxb6+ {[%clk 0:00:10]}  Kg5 {[%clk 0:00:14]} 40. Rb8 {[%clk 0:00:06]}  Ra2 {[%clk 0:00:13]} 41. c4 {[%clk 0:00:06]}  a4 {[%clk 0:00:12]} 42. c5 {[%clk 0:00:06]}  a3 {[%clk 0:00:12]} 43. bxa3 {[%clk 0:00:03]}  Rxa3+ {[%clk 0:00:13]} 44. Kf2 {[%clk 0:00:04]}  Rc3 {[%clk 0:00:14]} 45. Rc8 {[%clk 0:00:04]}  Kf4 {[%clk 0:00:13]} 46. c6 {[%clk 0:00:03]}  Rc2+ {[%clk 0:00:13]} 47. Kf1 {[%clk 0:00:03]}  Kg3 {[%clk 0:00:11]} 48. c7 {[%clk 0:00:02]}  Kh2 {[%clk 0:00:09]} 49. Ke1 {[%clk 0:00:02]}  f4 {[%clk 0:00:08]} 50. Kd1 {[%clk 0:00:03]}  Rc6 {[%clk 0:00:07]} 51. Ke2 {[%clk 0:00:02]}  Rc3 {[%clk 0:00:06]} 52. Kd2 {[%clk 0:00:03]}  Rc6 {[%clk 0:00:06]} 53. Kd3 {[%clk 0:00:03]}  f3 {[%clk 0:00:07]} 54. gxf3 {[%clk 0:00:02]}  Kxh3 {[%clk 0:00:08]} 55. Ke4 {[%clk 0:00:02]}  Kh2 {[%clk 0:00:07]} 56. Kd5 {[%clk 0:00:03]}  Rc1 {[%clk 0:00:07]} 57. Kd6 {[%clk 0:00:03]}  h3 {[%clk 0:00:07]} 58. Rg8 {[%clk 0:00:02]}  Kh1 {[%clk 0:00:03]} 59. c8=Q {[%clk 0:00:02]}  Rxc8 {[%clk 0:00:03]} 60. Rxc8 {[%clk 0:00:03]}  h2 {[%clk 0:00:02]} 61. Rg8 {[%clk 0:00:03]}  f5 {[%clk 0:00:02]} 62. Ke5 {[%clk 0:00:03]}  f4 {[%clk 0:00:02]} 63. Rh8 {[%clk 0:00:04]}  Kg2 {[%clk 0:00:02]} 64. Rxh2+ {[%clk 0:00:04]}  Kxh2 {[%clk 0:00:03]} 65. Kxf4 {[%clk 0:00:04]}  Kh3 {[%clk 0:00:03]} 66. Kg5 {[%clk 0:00:04]}  Kg3 {[%clk 0:00:04]} 67. f4 {[%clk 0:00:05]}  Kf3 {[%clk 0:00:04]} 68. f5 {[%clk 0:00:06]}  Ke4 {[%clk 0:00:05]} 69. f6 {[%clk 0:00:07]}  Ke5 {[%clk 0:00:05]} 70. f7 {[%clk 0:00:08]}  Ke6 {[%clk 0:00:06]} 71. f8=Q {[%clk 0:00:08]} 1-0


[Site "https://www.chess.com"]

[Event "Titled Tuesday Blitz July 6 2021"]
[White "Travadon, Loic"]
[Black "Solon, Nathan"]
[WhiteFideId "26092131"]
[BlackFideId "2017229"]
[WhiteElo "2095"]
[BlackElo "2644"]
[Result "1-0"]
[Round "02"]
[TimeControl "180+1"]
[Date "2021.07.06"]
[WhiteClock "0:00:58"]
[BlackClock "0:00:15"]

1. Nf3 {[%clk 0:03:00]}  d5 {[%clk 0:02:59]} 2. d4 {[%clk 0:02:59]}  Nf6 {[%clk 0:02:59]} 3. c4 {[%clk 0:02:59]}  dxc4 {[%clk 0:02:59]} 4. e3 {[%clk 0:02:59]}  Bg4 {[%clk 0:02:58]} 5. Bxc4 {[%clk 0:02:58]}  e6 {[%clk 0:02:59]} 6. h3 {[%clk 0:02:58]}  Bh5 {[%clk 0:02:58]} 7. O-O {[%clk 0:02:57]}  a6 {[%clk 0:02:56]} 8. Nbd2 {[%clk 0:02:57]}  Nc6 {[%clk 0:02:54]} 9. b3 {[%clk 0:02:57]}  Bd6 {[%clk 0:02:52]} 10. Bb2 {[%clk 0:02:57]}  Qe7 {[%clk 0:02:33]} 11. Be2 {[%clk 0:02:55]}  O-O {[%clk 0:02:30]} 12. Rc1 {[%clk 0:02:54]}  Rad8 {[%clk 0:02:29]} 13. Qc2 {[%clk 0:02:53]}  e5 {[%clk 0:02:20]} 14. dxe5 {[%clk 0:02:53]}  Nxe5 {[%clk 0:02:20]} 15. Rfd1 {[%clk 0:02:52]}  Bg6 {[%clk 0:02:16]} 16. e4 {[%clk 0:02:50]}  Nxf3+ {[%clk 0:02:13]} 17. Bxf3 {[%clk 0:02:50]}  Rfe8 {[%clk 0:02:10]} 18. Re1 {[%clk 0:02:49]}  Nd5 {[%clk 0:02:04]} 19. Nc4 {[%clk 0:02:45]}  Nb4 {[%clk 0:02:02]} 20. Qc3 {[%clk 0:02:43]}  f6 {[%clk 0:01:53]} 21. Nxd6 {[%clk 0:02:37]}  Qxd6 {[%clk 0:01:53]} 22. Rcd1 {[%clk 0:02:37]}  Qe7 {[%clk 0:01:51]} 23. a3 {[%clk 0:02:33]}  Nc6 {[%clk 0:01:46]} 24. e5 {[%clk 0:02:32]}  Rxd1 {[%clk 0:01:41]} 25. Bxd1 {[%clk 0:02:31]}  Nxe5 {[%clk 0:01:30]} 26. Kh1 {[%clk 0:02:25]}  Qd8 {[%clk 0:01:21]} 27. b4 {[%clk 0:02:23]}  Nd3 {[%clk 0:01:18]} 28. Bb3+ {[%clk 0:02:23]}  Kh8 {[%clk 0:01:18]} 29. Rxe8+ {[%clk 0:02:15]}  Qxe8 {[%clk 0:01:19]} 30. Kg1 {[%clk 0:02:10]}  c6 {[%clk 0:01:18]} 31. Qxf6 {[%clk 0:02:09]}  Nxb2 {[%clk 0:00:58]} 32. Qxb2 {[%clk 0:02:10]}  h6 {[%clk 0:00:58]} 33. Qd2 {[%clk 0:02:09]}  Kh7 {[%clk 0:00:56]} 34. f3 {[%clk 0:02:03]}  Qe5 {[%clk 0:00:55]} 35. Kf2 {[%clk 0:02:01]}  Qa1 {[%clk 0:00:53]} 36. Qe3 {[%clk 0:02:01]}  Qb2+ {[%clk 0:00:52]} 37. Kg3 {[%clk 0:02:00]}  Qf6 {[%clk 0:00:44]} 38. h4 {[%clk 0:01:46]}  Qd8 {[%clk 0:00:38]} 39. Qe6 {[%clk 0:01:41]}  Bd3 {[%clk 0:00:27]} 40. h5 {[%clk 0:01:34]}  Qf8 {[%clk 0:00:27]} 41. Kg4 {[%clk 0:01:29]}  Kh8 {[%clk 0:00:26]} 42. f4 {[%clk 0:01:28]}  Qd8 {[%clk 0:00:23]} 43. Kh3 {[%clk 0:01:26]}  Bh7 {[%clk 0:00:23]} 44. g3 {[%clk 0:01:24]}  Bg8 {[%clk 0:00:23]} 45. Qxg8+ {[%clk 0:01:07]}  Qxg8 {[%clk 0:00:24]} 46. Bxg8 {[%clk 0:01:07]}  Kxg8 {[%clk 0:00:25]} 47. Kg4 {[%clk 0:01:07]}  Kf7 {[%clk 0:00:23]} 48. Kf5 {[%clk 0:01:07]}  b6 {[%clk 0:00:22]} 49. g4 {[%clk 0:01:05]}  Ke7 {[%clk 0:00:22]} 50. Ke5 {[%clk 0:01:05]}  Kd7 {[%clk 0:00:19]} 51. a4 {[%clk 0:01:01]}  Ke7 {[%clk 0:00:19]} 52. g5 {[%clk 0:01:00]}  hxg5 {[%clk 0:00:16]} 53. fxg5 {[%clk 0:01:00]}  Kd7 {[%clk 0:00:15]} 54. h6 {[%clk 0:00:58]} 1-0


[Site "https://www.chess.com"]

[Event "Titled Tuesday Blitz July 6 2021"]
[White "Vlachos, Anatole"]
[Black "Kanyamarala, Trisha"]
[WhiteFideId "26093189"]
[BlackFideId "45004722"]
[WhiteElo "2350"]
[BlackElo "2074"]
[Result "1-0"]
[Round "02"]
[TimeControl "180+1"]
[Date "2021.07.06"]
[WhiteClock "0:01:04"]
[BlackClock "0:00:01"]

1. Nf3 {[%clk 0:02:57]}  d5 {[%clk 0:02:59]} 2. g3 {[%clk 0:02:57]}  Nd7 {[%clk 0:02:54]} 3. Bg2 {[%clk 0:02:54]}  e5 {[%clk 0:02:53]} 4. O-O {[%clk 0:02:54]}  e4 {[%clk 0:02:44]} 5. Ne1 {[%clk 0:02:54]}  Ngf6 {[%clk 0:02:43]} 6. d3 {[%clk 0:02:53]}  Be7 {[%clk 0:02:40]} 7. c4 {[%clk 0:02:53]}  c6 {[%clk 0:02:40]} 8. Nc3 {[%clk 0:02:47]}  exd3 {[%clk 0:02:37]} 9. cxd5 {[%clk 0:02:46]}  dxe2 {[%clk 0:02:25]} 10. Qxe2 {[%clk 0:02:45]}  cxd5 {[%clk 0:02:24]} 11. Nxd5 {[%clk 0:02:41]}  Nxd5 {[%clk 0:02:23]} 12. Bxd5 {[%clk 0:02:42]}  O-O {[%clk 0:02:05]} 13. Ng2 {[%clk 0:02:34]}  Nb6 {[%clk 0:01:51]} 14. Bb3 {[%clk 0:02:29]}  Bf6 {[%clk 0:01:36]} 15. Be3 {[%clk 0:02:23]}  Bf5 {[%clk 0:01:27]} 16. Rad1 {[%clk 0:02:15]}  Qe7 {[%clk 0:01:11]} 17. Nf4 {[%clk 0:02:14]}  Be5 {[%clk 0:00:50]} 18. Qf3 {[%clk 0:02:09]}  Bxf4 {[%clk 0:00:28]} 19. Bxf4 {[%clk 0:02:06]}  Qf6 {[%clk 0:00:19]} 20. Rfe1 {[%clk 0:01:58]}  Qg6 {[%clk 0:00:19]} 21. Rd6 {[%clk 0:01:53]}  Qg4 {[%clk 0:00:15]} 22. Qxg4 {[%clk 0:01:38]}  Bxg4 {[%clk 0:00:16]} 23. Kg2 {[%clk 0:01:39]}  h6 {[%clk 0:00:13]} 24. h3 {[%clk 0:01:31]}  Bf5 {[%clk 0:00:13]} 25. g4 {[%clk 0:01:30]}  Bd7 {[%clk 0:00:09]} 26. Re7 {[%clk 0:01:28]}  Bc6+ {[%clk 0:00:09]} 27. Kg3 {[%clk 0:01:28]}  Nc8 {[%clk 0:00:09]} 28. Rxf7 {[%clk 0:01:20]}  Nxd6 {[%clk 0:00:07]} 29. Re7+ {[%clk 0:01:10]}  Kh8 {[%clk 0:00:06]} 30. Bxd6 {[%clk 0:01:10]}  Rf3+ {[%clk 0:00:03]} 31. Kh4 {[%clk 0:01:06]}  Rxf2 {[%clk 0:00:03]} 32. Be5 {[%clk 0:01:06]}  Rg8 {[%clk 0:00:02]} 33. Bxg8 {[%clk 0:01:05]}  Kxg8 {[%clk 0:00:02]} 34. Rxg7+ {[%clk 0:01:05]}  Kf8 {[%clk 0:00:03]} 35. Rh7 {[%clk 0:01:04]}  Re2 {[%clk 0:00:03]} 36. Bc3 {[%clk 0:01:02]}  Rh2 {[%clk 0:00:02]} 37. Rxh6 {[%clk 0:01:01]}  Bg2 {[%clk 0:00:02]} 38. Kg3 {[%clk 0:01:02]}  Bxh3 {[%clk 0:00:01]} 39. Rxh3 {[%clk 0:01:03]}  Rxh3+ {[%clk 0:00:01]} 40. Kxh3 {[%clk 0:01:04]} 1-0


[Site "https://www.chess.com"]

[Event "Titled Tuesday Blitz July 6 2021"]
[White "Vogel, Roven"]
[Black "Devaev, Alexander"]
[WhiteFideId "12908088"]
[BlackFideId "4169395"]
[WhiteElo "2516"]
[BlackElo "2185"]
[Result "1-0"]
[Round "02"]
[TimeControl "180+1"]
[Date "2021.07.06"]
[WhiteClock "0:00:14"]
[BlackClock "0:00:03"]

1. e4 {[%clk 0:03:00]}  c6 {[%clk 0:02:55]} 2. Nf3 {[%clk 0:03:00]}  d5 {[%clk 0:02:56]} 3. d3 {[%clk 0:02:57]}  Bg4 {[%clk 0:02:53]} 4. Nbd2 {[%clk 0:02:54]}  Nf6 {[%clk 0:02:52]} 5. h3 {[%clk 0:02:51]}  Bxf3 {[%clk 0:02:52]} 6. Qxf3 {[%clk 0:02:51]}  e6 {[%clk 0:02:53]} 7. g3 {[%clk 0:02:44]}  Nbd7 {[%clk 0:02:52]} 8. Bg2 {[%clk 0:02:44]}  g6 {[%clk 0:02:52]} 9. Qe2 {[%clk 0:02:41]}  Bg7 {[%clk 0:02:52]} 10. e5 {[%clk 0:02:37]}  Ng8 {[%clk 0:02:52]} 11. Nf3 {[%clk 0:02:23]}  Qc7 {[%clk 0:02:46]} 12. d4 {[%clk 0:02:19]}  Ne7 {[%clk 0:02:43]} 13. O-O {[%clk 0:02:18]}  c5 {[%clk 0:02:42]} 14. c3 {[%clk 0:02:17]}  Nc6 {[%clk 0:02:42]} 15. Be3 {[%clk 0:02:11]}  cxd4 {[%clk 0:02:41]} 16. cxd4 {[%clk 0:02:11]}  O-O {[%clk 0:02:42]} 17. h4 {[%clk 0:02:09]}  Rac8 {[%clk 0:02:40]} 18. h5 {[%clk 0:02:09]}  Qb6 {[%clk 0:02:31]} 19. Rac1 {[%clk 0:02:04]}  Na5 {[%clk 0:02:30]} 20. b3 {[%clk 0:02:04]}  Rc6 {[%clk 0:01:45]} 21. Rxc6 {[%clk 0:01:56]}  Nxc6 {[%clk 0:01:44]} 22. Rd1 {[%clk 0:01:54]}  Rc8 {[%clk 0:01:44]} 23. Ng5 {[%clk 0:01:49]}  Ne7 {[%clk 0:01:40]} 24. g4 {[%clk 0:01:46]}  Qa6 {[%clk 0:01:18]} 25. Qf3 {[%clk 0:01:41]}  Rf8 {[%clk 0:01:18]} 26. Bf1 {[%clk 0:01:27]}  Qxa2 {[%clk 0:01:14]} 27. hxg6 {[%clk 0:01:27]}  fxg6 {[%clk 0:01:03]} 28. Qh3 {[%clk 0:01:26]}  h6 {[%clk 0:01:03]} 29. Nxe6 {[%clk 0:01:26]}  g5 {[%clk 0:01:03]} 30. Rc1 {[%clk 0:01:08]}  Nc6 {[%clk 0:00:56]} 31. Qh5 {[%clk 0:00:58]}  Rf7 {[%clk 0:00:30]} 32. Bd3 {[%clk 0:00:50]}  Nf8 {[%clk 0:00:10]} 33. Nxf8 {[%clk 0:00:35]}  Kxf8 {[%clk 0:00:10]} 34. Qg6 {[%clk 0:00:36]}  Qxb3 {[%clk 0:00:05]} 35. Qd6+ {[%clk 0:00:22]}  Re7 {[%clk 0:00:04]} 36. Bf5 {[%clk 0:00:16]}  Qa3 {[%clk 0:00:03]} 37. Qxa3 {[%clk 0:00:14]} 1-0


[Site "https://www.chess.com"]

[Event "Titled Tuesday Blitz July 6 2021"]
[White "Williams, Simon K"]
[Black "Grischuk, Alexander"]
[WhiteFideId "404454"]
[BlackFideId "4126025"]
[WhiteElo "2468"]
[BlackElo "2765"]
[Result "0-1"]
[Round "02"]
[TimeControl "180+1"]
[Date "2021.07.06"]
[WhiteClock "0:00:02"]
[BlackClock "0:00:05"]

1. d4 {[%clk 0:03:00]}  Nf6 {[%clk 0:02:54]} 2. c4 {[%clk 0:02:57]}  g6 {[%clk 0:02:50]} 3. Nc3 {[%clk 0:02:57]}  d5 {[%clk 0:02:47]} 4. Nf3 {[%clk 0:02:44]}  Bg7 {[%clk 0:02:41]} 5. h4 {[%clk 0:02:43]}  c6 {[%clk 0:02:33]} 6. cxd5 {[%clk 0:02:32]}  cxd5 {[%clk 0:02:34]} 7. Bf4 {[%clk 0:02:31]}  O-O {[%clk 0:02:31]} 8. e3 {[%clk 0:02:31]}  Nc6 {[%clk 0:02:17]} 9. Ne5 {[%clk 0:02:23]}  Nxe5 {[%clk 0:02:09]} 10. Bxe5 {[%clk 0:02:13]}  Ne4 {[%clk 0:02:08]} 11. Bxg7 {[%clk 0:02:07]}  Kxg7 {[%clk 0:02:06]} 12. Nxe4 {[%clk 0:02:00]}  dxe4 {[%clk 0:02:07]} 13. Be2 {[%clk 0:01:57]}  Be6 {[%clk 0:01:59]} 14. O-O {[%clk 0:01:48]}  Qb6 {[%clk 0:01:41]} 15. Qd2 {[%clk 0:01:36]}  Rac8 {[%clk 0:01:40]} 16. b3 {[%clk 0:01:29]}  Bd5 {[%clk 0:01:04]} 17. Rfc1 {[%clk 0:01:26]}  a5 {[%clk 0:01:04]} 18. Bc4 {[%clk 0:00:50]}  e6 {[%clk 0:01:03]} 19. Rc2 {[%clk 0:00:49]}  Rc6 {[%clk 0:00:51]} 20. Rac1 {[%clk 0:00:47]}  Rfc8 {[%clk 0:00:48]} 21. Bxd5 {[%clk 0:00:45]}  exd5 {[%clk 0:00:46]} 22. Rxc6 {[%clk 0:00:40]}  bxc6 {[%clk 0:00:43]} 23. Rc5 {[%clk 0:00:39]}  Ra8 {[%clk 0:00:43]} 24. Qc3 {[%clk 0:00:37]}  Ra6 {[%clk 0:00:43]} 25. h5 {[%clk 0:00:27]}  g5 {[%clk 0:00:40]} 26. f3 {[%clk 0:00:24]}  exf3 {[%clk 0:00:35]} 27. gxf3 {[%clk 0:00:24]}  Qb4 {[%clk 0:00:27]} 28. e4 {[%clk 0:00:17]}  Qxc3 {[%clk 0:00:22]} 29. Rxc3 {[%clk 0:00:17]}  Kh6 {[%clk 0:00:16]} 30. exd5 {[%clk 0:00:12]}  cxd5 {[%clk 0:00:17]} 31. Rc5 {[%clk 0:00:12]}  Kxh5 {[%clk 0:00:16]} 32. Rxd5 {[%clk 0:00:13]}  Kh4 {[%clk 0:00:13]} 33. Kf2 {[%clk 0:00:13]}  h5 {[%clk 0:00:07]} 34. Rc5 {[%clk 0:00:08]}  g4 {[%clk 0:00:06]} 35. fxg4 {[%clk 0:00:06]}  hxg4 {[%clk 0:00:06]} 36. Rc8 {[%clk 0:00:06]}  Rf6+ {[%clk 0:00:04]} 37. Kg2 {[%clk 0:00:06]}  Rf3 {[%clk 0:00:04]} 38. d5 {[%clk 0:00:04]}  Rd3 {[%clk 0:00:04]} 39. Rd8 {[%clk 0:00:03]}  Rd2+ {[%clk 0:00:03]} 40. Kf1 {[%clk 0:00:03]}  Kg3 {[%clk 0:00:04]} 41. Ke1 {[%clk 0:00:03]}  Rd4 {[%clk 0:00:04]} 42. d6 {[%clk 0:00:03]}  f5 {[%clk 0:00:05]} 43. Rf8 {[%clk 0:00:03]}  f4 {[%clk 0:00:04]} 44. Rf6 {[%clk 0:00:03]}  f3 {[%clk 0:00:05]} 45. Rf5 {[%clk 0:00:02]}  Kg2 {[%clk 0:00:05]} 0-1


[Site "https://www.chess.com"]

[Event "Titled Tuesday Blitz July 6 2021"]
[White "Yakubboev, Nodirbek"]
[Black "AleksanderHnydiuk"]
[WhiteFideId "14203987"]
[WhiteElo "2519"]
[BlackElo "2539"]
[Result "1-0"]
[Round "02"]
[TimeControl "180+1"]
[Date "2021.07.06"]
[WhiteClock "0:00:27"]
[BlackClock "0:00:01"]

1. c4 {[%clk 0:03:00]}  g6 {[%clk 0:02:59]} 2. g3 {[%clk 0:02:57]}  Bg7 {[%clk 0:02:59]} 3. Bg2 {[%clk 0:02:57]}  Nf6 {[%clk 0:02:59]} 4. Nc3 {[%clk 0:02:54]}  O-O {[%clk 0:02:58]} 5. d4 {[%clk 0:02:54]}  d6 {[%clk 0:02:58]} 6. Nf3 {[%clk 0:02:50]}  Nc6 {[%clk 0:02:58]} 7. O-O {[%clk 0:02:49]}  e5 {[%clk 0:02:58]} 8. d5 {[%clk 0:02:40]}  Nb8 {[%clk 0:02:58]} 9. e4 {[%clk 0:02:36]}  a5 {[%clk 0:02:56]} 10. Ne1 {[%clk 0:02:32]}  Na6 {[%clk 0:02:56]} 11. Nd3 {[%clk 0:02:30]}  Nd7 {[%clk 0:02:43]} 12. Be3 {[%clk 0:02:26]}  Nac5 {[%clk 0:02:35]} 13. Nxc5 {[%clk 0:02:20]}  Nxc5 {[%clk 0:02:35]} 14. a3 {[%clk 0:02:17]}  f5 {[%clk 0:02:29]} 15. b4 {[%clk 0:02:01]}  axb4 {[%clk 0:02:29]} 16. axb4 {[%clk 0:02:02]}  Rxa1 {[%clk 0:02:30]} 17. Qxa1 {[%clk 0:02:02]}  Nb3 {[%clk 0:02:05]} 18. Qd1 {[%clk 0:01:59]}  Nd4 {[%clk 0:01:58]} 19. exf5 {[%clk 0:01:52]}  Bxf5 {[%clk 0:01:55]} 20. Ne4 {[%clk 0:01:36]}  Qd7 {[%clk 0:01:51]} 21. Qd3 {[%clk 0:01:21]}  Ra8 {[%clk 0:01:48]} 22. Rc1 {[%clk 0:01:13]}  Ra2 {[%clk 0:01:44]} 23. Kh1 {[%clk 0:01:10]}  Qa4 {[%clk 0:01:40]} 24. c5 {[%clk 0:01:06]}  Ra1 {[%clk 0:01:24]} 25. Qf1 {[%clk 0:00:58]}  Rxc1 {[%clk 0:01:21]} 26. Qxc1 {[%clk 0:00:59]}  Qxb4 {[%clk 0:01:08]} 27. cxd6 {[%clk 0:00:59]}  cxd6 {[%clk 0:01:06]} 28. h3 {[%clk 0:00:59]}  Ne2 {[%clk 0:00:48]} 29. Qd1 {[%clk 0:00:39]}  Bxe4 {[%clk 0:00:43]} 30. Qxe2 {[%clk 0:00:39]}  Bxg2+ {[%clk 0:00:33]} 31. Kxg2 {[%clk 0:00:40]}  Qe4+ {[%clk 0:00:32]} 32. Qf3 {[%clk 0:00:40]}  Qxf3+ {[%clk 0:00:25]} 33. Kxf3 {[%clk 0:00:41]}  b5 {[%clk 0:00:25]} 34. Ke4 {[%clk 0:00:40]}  Kf7 {[%clk 0:00:22]} 35. Kd3 {[%clk 0:00:36]}  Ke7 {[%clk 0:00:22]} 36. Kc3 {[%clk 0:00:34]}  Kf6 {[%clk 0:00:13]} 37. Kb4 {[%clk 0:00:33]}  Kf5 {[%clk 0:00:13]} 38. Kxb5 {[%clk 0:00:33]}  Ke4 {[%clk 0:00:10]} 39. Kc6 {[%clk 0:00:33]}  Bf8 {[%clk 0:00:11]} 40. Bb6 {[%clk 0:00:32]}  Kf3 {[%clk 0:00:07]} 41. Kd7 {[%clk 0:00:33]}  e4 {[%clk 0:00:05]} 42. Ke6 {[%clk 0:00:31]}  g5 {[%clk 0:00:03]} 43. Be3 {[%clk 0:00:28]}  h6 {[%clk 0:00:01]} 44. Kf7 {[%clk 0:00:28]}  g4 {[%clk 0:00:01]} 45. h4 {[%clk 0:00:27]} 1-0


[Site "https://www.chess.com"]